bitfinex/quotes_SOLUSD_20260113
["timestamp","ask_amount","ask_price","bid_price","bid_amount"]
[1768269182560,0.72282229,138.84,138.81,0.65904623]
[1768269183668,10.59479288,138.84,138.8,16.46829172]
[1768269183964,10.59479288,138.84,138.8,13.79904623]
[1768269187558,2.66924549,138.83,138.8,0.65904623]
[1768269187767,3.33750643,138.83,138.8,0.65904623]
[1768269189056,10.54057492,138.83,138.8,0.65904623]
[1768269195072,0.65459448,138.84,138.81,0.71311649]
[1768269196691,7.85727606,138.84,138.81,0.71311649]
[1768269197665,9.56626841,138.84,138.81,0.71311649]
[1768269202985,2.36358683,138.83,138.8,0.71311649]
[1768269203801,0.65459448,138.82,138.8,0.71311649]
[1768269205693,0.65459448,138.82,138.78,22.76769335]
[1768269206179,0.65459448,138.82,138.79,0.71311649]
[1768269211710,0.65459448,138.82,138.79,9.62721812]
[1768269212001,0.65459448,138.82,138.8,0.71311649]
[1768269219608,0.70071284,138.83,138.8,0.71311649]
[1768269220001,0.70071284,138.83,138.8,2.42210884]
[1768269220300,0.70071284,138.83,138.8,0.71311649]
[1768269221393,13.14,138.87,138.8,0.71311649]
[1768269221394,0.70071284,138.86,138.83,0.70199202]
[1768269221781,0.70071284,138.85,138.82,0.70199202]
[1768269223490,0.70071284,138.83,138.8,0.70199202]
[1768269225108,9.61287246,138.83,138.8,0.70199202]
[1768269229994,2.40970519,138.83,138.8,0.70199202]
[1768269230330,0.70071284,138.83,138.8,0.70199202]
[1768269230733,7.90388429,138.83,138.8,0.70199202]
[1768269237936,0.70071284,138.82,138.79,21.04675525]
[1768269239338,0.70071284,138.82,138.8,0.70199202]
[1768269242339,2.40970519,138.81,138.78,0.70199202]
[1768269243038,0.70071284,138.81,138.78,0.70199202]
[1768269243621,2.40970519,138.81,138.78,0.70199202]
[1768269243833,0.70071284,138.81,138.78,0.70199202]
[1768269245234,0.70071284,138.81,138.78,7.90759849]
[1768269248332,0.70071284,138.81,138.78,0.70199202]
[1768269251427,0.66291322,138.84,138.8,0.69256876]
[1768269251628,0.66291322,138.83,138.8,0.69256876]
[1768269251829,0.66291322,138.84,138.81,0.69256876]
[1768269252130,0.66291322,138.86,138.83,0.69256876]
[1768269253139,7.8644658,138.86,138.83,0.69256876]
[1768269255760,0.70728483,138.85,138.83,1.70899235]
[1768269255932,0.70728483,138.88,138.85,0.70955836]
[1768269256140,0.70728483,138.88,138.85,0.64955836]
[1768269257245,0.70728483,138.89,138.85,8.9109851]
[1768269257557,0.70728483,138.89,138.85,9.87010306]
[1768269258429,0.70728483,138.88,138.85,9.87010306]
[1768269258857,0.70728483,138.88,138.84,0.70955836]
[1768269258858,0.70728483,138.88,138.84,10.58001172]
[1768269262659,0.70728483,138.88,138.86,0.70955836]
[1768269262840,7.9067464,138.9,138.86,2.66811031]
[1768269263235,7.9067464,138.9,138.85,7.20194622]
[1768269263236,0.70728483,138.89,138.85,2.66811031]
[1768269263441,3.37539514,138.89,138.84,9.87047825]
[1768269263651,3.37539514,138.89,138.84,23.01047825]
[1768269263854,0.70728483,138.88,138.83,7.20302234]
[1768269264054,0.70728483,138.88,138.84,15.80811031]
[1768269264435,0.70728483,138.88,138.85,2.66811031]
[1768269264839,0.70728483,138.88,138.85,3.37766867]
[1768269268968,7.90779324,138.88,138.85,3.37766867]
[1768269269453,7.90779324,138.88,138.85,0.70955836]
[1768269273067,7.90779324,138.88,138.85,3.37766867]
[1768269273759,0.70728483,138.86,138.83,0.70955836]
[1768269274465,0.70728483,138.86,138.82,3.36396284]
[1768269275345,0.71231876,138.85,138.81,13.83585253]
[1768269275546,0.71231876,138.85,138.81,23.70774938]
[1768269278081,0.71231876,138.84,138.81,23.70774938]
[1768269280049,0.71231876,138.84,138.82,2.66811031]
[1768269284190,0.71231876,138.84,138.83,2.66811031]
[1768269290270,0.71231876,138.84,138.8,10.56848216]
[1768269290682,0.71231876,138.84,138.8,10.53848702]
[1768269291492,0.71231876,138.84,138.81,2.66811031]
[1768269293298,0.71231876,138.83,138.81,2.66811031]
[1768269296283,0.65231879,138.83,138.81,2.66811031]
[1768269296594,0.65231879,138.83,138.81,2.63811033]
[1768269300199,0.65231879,138.83,138.8,3.3339677]
[1768269303096,0.59231905,138.83,138.81,2.66811031]
[1768269303272,0.59231905,138.83,138.81,2.63811056]
[1768269305405,0.59231905,138.83,138.8,10.53852001]
[1768269308786,0.59231905,138.83,138.8,7.8704097]
[1768269308986,0.59231905,138.83,138.8,10.53852001]
[1768269311110,0.69413067,138.82,138.8,3.3339677]
[1768269311320,0.69413067,138.82,138.77,32.59933932]
[1768269311321,0.69413067,138.82,138.78,23.71234142]
[1768269311617,0.69413067,138.82,138.79,0.69874121]
[1768269312416,0.69413067,138.82,138.78,20.3454899]
[1768269312640,0.69413067,138.82,138.78,23.71234142]
[1768269313114,0.69413067,138.82,138.79,0.69874121]
[1768269313300,0.69413067,138.81,138.78,10.57234142]
[1768269313613,0.69413067,138.81,138.79,0.66885587]
[1768269314908,0.65295672,138.82,138.8,3.33696618]
[1768269315508,0.65295672,138.82,138.8,10.54150695]
[1768269317389,0.65295672,138.82,138.8,9.58233151]
[1768269320417,0.65295672,138.82,138.8,2.37779074]
[1768269320618,0.65295672,138.82,138.78,21.01435315]
[1768269320792,0.65295672,138.81,138.79,0.66885587]
[1768269322130,0.65295672,138.79,138.76,0.66885587]
[1768269322419,0.61493244,138.79,138.76,0.66885587]
[1768269324805,0.61493244,138.79,138.75,8.91580217]
[1768269324806,0.65295672,138.78,138.74,15.71779074]
[1768269325065,0.65295672,138.78,138.75,0.66885587]
[1768269328223,0.65295672,138.77,138.74,2.57779074]
[1768269328724,0.65295672,138.77,138.74,0.86885587]
[1768269329310,0.65295672,138.77,138.74,2.57779074]
[1768269332425,0.65295672,138.77,138.74,0.86885587]
[1768269335012,7.87075772,138.78,138.75,0.69084551]
[1768269335324,0.66508867,138.77,138.74,1.90893487]
[1768269335522,0.66508867,138.77,138.74,0.2]
[1768269337820,0.66508867,138.76,138.74,0.2]
[1768269338337,0.66508867,138.77,138.74,0.89084551]
[1768269339011,0.66508867,138.77,138.74,0.2]
[1768269341940,0.66508867,138.76,138.74,0.2]
[1768269342649,0.66508867,138.75,138.74,0.2]
[1768269342930,7.87182505,138.76,138.74,0.2]
[1768269343341,0.66508867,138.76,138.74,0.2]
[1768269343740,0.66508867,138.77,138.75,0.69084551]
[1768269344116,0.66508867,138.77,138.74,0.89084551]
[1768269346439,0.66508867,138.77,138.74,2.59978038]
[1768269346618,7.87037529,138.79,138.77,0.69084551]
[1768269347425,7.87037529,138.79,138.76,2.39978038]
[1768269349822,18.00956892,138.82,138.77,0.69084551]
[1768269350024,7.86949695,138.81,138.78,2.39978038]
[1768269350347,7.86949695,138.81,138.78,2.33978038]
[1768269350520,0.66508867,138.81,138.79,1.70893487]
[1768269352426,0.66508867,138.81,138.79,1.64893487]
[1768269352939,7.20306964,138.83,138.8,0.69084551]
[1768269353122,7.20306964,138.83,138.8,2.39978038]
[1768269353325,7.86815831,138.83,138.8,2.39978038]
[1768269353843,0.66508867,138.82,138.79,1.70893487]
[1768269354066,0.66508867,138.82,138.79,2.39978038]
[1768269355544,7.86875289,138.82,138.79,2.39978038]
[1768269356040,0.66508867,138.81,138.79,2.39978038]
[1768269356554,7.86875289,138.82,138.79,2.39978038]
[1768269358331,0.66508867,138.82,138.79,1.70893487]
[1768269359037,0.66508867,138.82,138.8,1.70893487]
[1768269359237,0.66508867,138.81,138.8,1.70893487]
[1768269360954,0.66508867,138.81,138.78,0.69084551]
[1768269360955,0.66508867,138.81,138.79,1.70893487]
[1768269361840,0.66508867,138.81,138.78,2.39978038]
[1768269362551,0.66508867,138.81,138.78,1.70893487]
[1768269362857,0.66508867,138.81,138.77,22.07489311]
[1768269363230,0.66508867,138.79,138.75,0.69084551]
[1768269363440,0.66508867,138.77,138.74,1.90893487]
[1768269363632,0.66508867,138.77,138.74,2.59978038]
[1768269363831,0.66508867,138.77,138.74,9.80747835]
[1768269365631,0.66508867,138.77,138.74,2.59978038]
[1768269366248,0.6050887,138.77,138.74,2.59978038]
[1768269367057,0.6050887,138.77,138.74,9.80749824]
[1768269369459,0.6050887,138.77,138.74,2.59978038]
[1768269373140,0.6050887,138.77,138.75,0.69003568]
[1768269373552,0.57508871,138.77,138.75,0.69003568]
[1768269373751,0.54508873,138.77,138.75,0.69003568]
[1768269374348,7.20586821,138.78,138.75,0.69003568]
[1768269374539,8.91480308,138.78,138.75,0.69003568]
[1768269375761,0.68652829,138.78,138.75,0.69003568]
[1768269375950,0.68652829,138.78,138.75,2.39897055]
[1768269376152,0.68652829,138.79,138.76,2.39897055]
[1768269376840,0.68652829,138.8,138.78,1.70893487]
[1768269377433,0.68652829,138.8,138.78,2.67084899]
[1768269377855,0.68652829,138.82,138.79,3.36088467]
[1768269378043,0.68652829,138.82,138.8,2.67084899]
[1768269378242,13.16,138.86,138.81,2.67084899]
[1768269378243,0.68652829,138.83,138.81,2.67084899]
[1768269379045,33.83534802,138.86,138.81,3.36088467]
[1768269379046,7.88858119,138.85,138.81,3.36088467]
[1768269379268,7.88858119,138.85,138.82,2.67084899]
[1768269379465,0.68652829,138.84,138.82,2.67084899]
[1768269379865,0.68652829,138.84,138.81,3.36088467]
[1768269380173,7.88858119,138.85,138.81,3.36088467]
[1768269380544,7.88858119,138.85,138.82,0.69003568]
[1768269383442,0.68652829,138.84,138.8,10.56508722]
[1768269386194,0.68652829,138.91,138.84,0.69003568]
[1768269386472,0.78652829,138.93,138.89,2.67084899]
[1768269386645,7.19735137,138.94,138.88,7.89039859]
[1768269386850,7.19735137,138.94,138.89,2.67084899]
[1768269387177,7.19735137,138.94,138.89,3.36088467]
[1768269387345,2.67084899,138.93,138.89,0.69003568]
[1768269387547,2.67084899,138.92,138.88,0.69003568]
[1768269387740,25.1907298,138.94,138.88,0.69003568]
[1768269387970,2.67084899,138.92,138.88,0.69003568]
[1768269388546,0.65066037,138.91,138.86,7.20114135]
[1768269388750,0.099,138.9,138.87,0.69003568]
[1768269388950,7.19907883,138.91,138.87,0.69003568]
[1768269389152,7.29807883,138.91,138.87,0.69003568]
[1768269391572,0.64514376,138.9,138.86,3.36088467]
[1768269392174,9.86992782,138.91,138.87,0.69003568]
[1768269392175,7.8497392,138.91,138.87,0.69003568]
[1768269392472,7.8497392,138.91,138.87,3.36088467]
[1768269393052,7.8497392,138.91,138.87,0.69003568]
[1768269393873,10.52058819,138.91,138.87,0.69003568]
[1768269394071,10.52058819,138.91,138.84,0.69003568]
[1768269394072,0.10446144,138.88,138.84,0.69003568]
[1768269394367,3.32150936,138.89,138.85,0.69003568]
[1768269394860,0.099,138.88,138.85,0.69003568]
[1768269395060,0.64514376,138.87,138.84,7.91162758]
[1768269396969,0.10446144,138.86,138.82,7.91272258]
[1768269397185,0.63973694,138.85,138.82,7.91272258]
[1768269397385,7.20101271,138.87,138.82,7.91272258]
[1768269397682,3.32150936,138.86,138.83,0.70926798]
[1768269398990,10.52306589,138.86,138.83,0.70926798]
[1768269399482,3.31599275,138.84,138.81,0.70926798]
[1768269399988,3.32150936,138.85,138.81,0.70926798]
[1768269400289,10.5236361,138.85,138.81,0.70926798]
[1768269401274,0.099,138.84,138.81,0.70926798]
[1768269401657,2.76984899,138.84,138.8,0.70926798]
[1768269401863,0.64514376,138.83,138.8,0.70926798]
[1768269402183,3.31599275,138.83,138.8,0.70926798]
[1768269404982,2.77531043,138.82,138.78,0.70926798]
[1768269406090,9.97889972,138.82,138.78,0.70926798]
[1768269407679,9.97889972,138.82,138.79,0.70926798]
[1768269408690,7.30805073,138.82,138.79,0.70926798]
[1768269411489,0.63973694,138.81,138.77,10.58610187]
[1768269411693,0.63973694,138.81,138.78,0.70926798]
[1768269412198,10.52509865,138.82,138.78,0.70926798]
[1768269416499,7.30219235,138.83,138.79,0.70926798]
[1768269416683,9.97304134,138.83,138.79,0.70926798]
[1768269417285,7.30219235,138.83,138.8,0.70926798]
[1768269419878,2.76984899,138.83,138.8,0.70926798]
[1768269422084,9.97322247,138.83,138.8,0.70926798]
[1768269425206,2.67084899,138.83,138.8,0.70926798]
[1768269425391,21.32862394,138.84,138.8,0.70926798]
[1768269427311,28.53115923,138.84,138.8,0.70926798]
[1768269428290,27.88049886,138.84,138.8,0.70926798]
[1768269429511,27.97949886,138.84,138.8,0.70926798]
[1768269433613,2.76984899,138.84,138.8,0.70926798]
[1768269437347,7.20305409,138.83,138.8,0.70926798]
[1768269438856,7.14305412,138.83,138.81,0.68157884]
[1768269439538,7.14305412,138.83,138.79,8.91416621]
[1768269439539,1.81350771,138.82,138.79,0.68157884]
[1768269439842,1.70904627,138.81,138.79,0.68157884]
[1768269440040,2.40658505,138.8,138.75,7.20669982]
[1768269440241,0.69753878,138.79,138.75,8.91574609]
[1768269440418,1.70904627,138.8,138.75,8.91574609]
[1768269440419,2.40658505,138.8,138.75,8.88574757]
[1768269440619,0.69753878,138.79,138.74,7.40772346]
[1768269440821,0.69753878,138.78,138.74,0.2]
[1768269441035,7.90338098,138.78,138.74,0.2]
[1768269441236,7.90338098,138.78,138.74,7.40772454]
[1768269441452,7.90338098,138.78,138.74,9.11677081]
[1768269441927,7.90338098,138.78,138.75,0.68157884]
[1768269444059,0.69753878,138.76,138.74,0.2]
[1768269444422,2.40658505,138.76,138.74,0.2]
[1768269444637,0.69753878,138.76,138.74,0.2]
[1768269445040,0.69753878,138.75,138.74,0.2]
[1768269445361,0.66753879,138.75,138.74,0.2]
[1768269445746,0.66753879,138.75,138.74,0.17000598]
[1768269446630,7.20696237,138.76,138.74,0.17000598]
[1768269447454,7.90450115,138.76,138.74,0.17000598]
[1768269452364,7.90450115,138.76,138.74,0.14000606]
[1768269453863,7.90450115,138.76,138.74,0.8215849]
[1768269454169,7.90450115,138.76,138.74,0.14000606]
[1768269455147,7.20696237,138.76,138.74,0.84388342]
[1768269458270,7.89998966,138.76,138.74,0.84388342]
[1768269458872,7.86998967,138.76,138.74,0.84388342]
[1768269459172,7.86998967,138.76,138.74,0.81388925]
[1768269462964,1.70904627,138.77,138.74,0.81388925]
[1768269462965,2.41125792,138.77,138.74,0.81388925]
[1768269463574,0.70221165,138.77,138.74,0.81388925]
[1768269464372,32.88123514,138.8,138.76,0.70387736]
[1768269464373,7.2052937,138.79,138.76,0.70387736]
[1768269469680,0.70211981,138.78,138.75,0.70387736]
[1768269469877,0.64212027,138.78,138.75,0.67387781]
[1768269470182,9.61655162,138.79,138.75,0.67387781]
[1768269472386,7.86901697,138.78,138.75,0.67387781]
[1768269472772,7.80901699,138.78,138.75,0.67387781]
[1768269473281,7.80901699,138.78,138.75,0.64387782]
[1768269474090,0.70221165,138.77,138.74,13.27001189]
[1768269475171,0.70221165,138.77,138.75,0.70387736]
[1768269477186,7.90790132,138.78,138.75,0.70387736]
[1768269479593,7.90790132,138.78,138.75,0.67388372]
[1768269485094,9.61694759,138.78,138.75,0.67388372]
[1768269485291,0.66332101,138.77,138.75,0.67388372]
[1768269485485,9.62416001,138.78,138.75,0.67388372]
[1768269486297,7.91511374,138.78,138.75,0.64389007]
[1768269487401,7.91455412,138.79,138.75,0.64389007]
[1768269490395,7.2048308,138.8,138.77,0.67742231]
[1768269491178,7.89070523,138.8,138.77,0.67742231]
[1768269493296,7.89070523,138.8,138.77,2.38646858]
[1768269493695,7.89070523,138.8,138.78,0.68944028]
[1768269494610,7.89070523,138.8,138.77,2.39848655]
[1768269497817,0.70918857,138.79,138.77,2.39848655]
[1768269498209,0.70918857,138.79,138.77,1.70904627]
[1768269498690,0.70918857,138.79,138.76,2.39848655]
[1768269499315,0.70918857,138.79,138.76,3.3610204]
[1768269500112,0.70918857,138.79,138.77,0.68944028]
[1768269502396,0.70918857,138.79,138.76,3.3610204]
[1768269503707,0.70918857,138.79,138.77,0.68944028]
[1768269505623,0.70918857,138.79,138.77,3.3610204]
[1768269508324,0.71054531,138.81,138.79,0.68944028]
[1768269508534,0.71054531,138.81,138.78,3.3610204]
[1768269509400,7.91473697,138.81,138.78,3.3610204]
[1768269509603,7.91473697,138.81,138.78,0.68944028]
[1768269510030,0.6847644,138.8,138.76,0.68944028]
[1768269510324,0.6847644,138.8,138.77,0.68944028]
[1768269513432,7.88955437,138.8,138.77,0.68944028]
[1768269517129,7.88955437,138.8,138.77,3.3610204]
[1768269517724,7.88955437,138.8,138.77,0.68944028]
[1768269520125,7.88955437,138.8,138.77,3.3610204]
[1768269523434,7.88955437,138.8,138.78,0.71436702]
[1768269523635,7.20478997,138.8,138.78,0.71436702]
[1768269524938,7.86830024,138.8,138.78,0.71436702]
[1768269525328,0.66351027,138.79,138.76,3.38594714]
[1768269525936,7.20516186,138.79,138.77,0.71436702]
[1768269526237,10.54025225,138.79,138.76,0.71436702]
[1768269526414,28.55307738,138.79,138.76,0.71436702]
[1768269526616,28.55307738,138.79,138.76,0.68437323]
[1768269528129,25.88149726,138.79,138.76,0.68437323]
[1768269528337,0.66351027,138.78,138.74,2.78159201]
[1768269528723,7.86940635,138.78,138.74,3.49595903]
[1768269528909,7.86940635,138.78,138.75,0.71436702]
[1768269530258,7.20518006,138.79,138.78,0.71436702]
[1768269530540,7.86869033,138.79,138.77,2.67158012]
[1768269531635,25.87860424,138.81,138.77,3.38594714]
[1768269531819,0.66351027,138.8,138.77,3.38594714]
[1768269532549,25.87860424,138.81,138.78,3.38594714]
[1768269535146,25.21509397,138.81,138.79,0.71436702]
[1768269535442,7.20409192,138.81,138.79,0.71436702]
[1768269537440,0.66351027,138.81,138.79,0.71436702]
[1768269538153,7.86708324,138.82,138.79,0.71436702]
[1768269538326,4.42323939,138.81,138.79,0.71436702]
[1768269538644,7.86708324,138.82,138.79,0.71436702]
[1768269543450,7.86783312,138.81,138.79,0.71436702]
[1768269543644,7.86783312,138.81,138.78,3.38594714]
[1768269546850,7.80783314,138.81,138.78,3.38594714]
[1768269547367,7.20357297,138.82,138.79,0.65598321]
[1768269548869,7.86842014,138.82,138.79,0.65598321]
[1768269552873,7.20357297,138.82,138.79,0.65598321]
[1768269557659,7.20357297,138.82,138.81,0.70488994]
[1768269558889,7.86889868,138.83,138.8,3.37647006]
[1768269559360,7.86889868,138.83,138.8,0.70488994]
[1768269560162,7.20253529,138.84,138.81,0.70488994]
[1768269560768,7.86837988,138.84,138.81,0.70488994]
[1768269562688,0.69965004,138.83,138.78,8.91448385]
[1768269563690,0.69965004,138.82,138.78,8.91448385]
[1768269564687,0.69965004,138.82,138.78,9.61937379]
[1768269564872,7.9032368,138.82,138.78,9.61937379]
[1768269565280,0.69965004,138.81,138.78,9.61937379]
[1768269565587,7.9032368,138.82,138.79,0.70488994]
[1768269566283,7.90270413,138.83,138.79,0.70488994]
[1768269569384,9.61163144,138.83,138.79,0.70488994]
[1768269569992,7.90270413,138.83,138.79,0.70488994]
[1768269570205,9.61163144,138.83,138.79,0.70488994]
[1768269571485,0.69965004,138.82,138.79,0.70488994]
[1768269572008,2.40857735,138.82,138.79,0.70488994]
[1768269572585,0.69965004,138.82,138.79,0.70488994]
[1768269574293,7.90374196,138.81,138.79,0.70488994]
[1768269575002,7.90374196,138.81,138.78,2.38776584]
[1768269580431,0.70711003,138.8,138.78,1.70892731]
[1768269580794,0.63855024,138.79,138.76,7.20656218]
[1768269580993,0.63855024,138.79,138.77,1.70892731]
[1768269580994,0.60855025,138.79,138.77,1.70892731]
[1768269581299,7.2047051,138.8,138.78,0.67883853]
[1768269581798,7.20409192,138.81,138.78,0.67883853]
[1768269582915,7.91120195,138.81,138.78,0.67883853]
[1768269583214,7.91101398,138.82,138.79,2.38776584]
[1768269585799,7.91101398,138.82,138.79,0.67883853]
[1768269586211,7.81307364,138.81,138.77,9.59359795]
[1768269586415,7.81307364,138.81,138.78,0.67883853]
[1768269586617,7.81307364,138.81,138.78,2.38776584]
[1768269589421,7.910683,138.82,138.79,0.67883853]
[1768269592726,7.81307648,138.81,138.78,1.70892731]
[1768269593019,7.81307648,138.81,138.78,2.38776584]
[1768269593224,7.81307648,138.81,138.78,0.67883853]
[1768269593415,7.20422623,138.81,138.78,0.67883853]
[1768269593797,7.20422623,138.81,138.79,0.67883853]
[1768269595602,7.20422623,138.81,138.8,0.67883853]
[1768269595804,7.20378075,138.82,138.8,0.67883853]
[1768269598532,0.70612743,138.81,138.78,2.38776584]
[1768269598831,7.9102357,138.81,138.78,2.38776584]
[1768269600729,7.9102357,138.81,138.79,0.67883853]
[1768269601030,7.91088697,138.82,138.79,0.67883853]
[1768269601633,7.20377694,138.82,138.8,0.67883853]
[1768269602350,0.70711003,138.85,138.82,0.67883853]
[1768269602558,7.90924859,138.85,138.82,2.38776584]
[1768269604236,0.60885025,138.84,138.81,0.67883853]
[1768269604431,0.60885025,138.84,138.82,1.70892731]
[1768269604631,0.60885025,138.84,138.81,0.67883853]
[1768269604632,0.60885025,138.84,138.8,0.65711243]
[1768269604940,0.60982303,138.82,138.78,15.52603974]
[1768269605122,0.60982303,138.82,138.79,0.65711243]
[1768269605871,7.81366788,138.82,138.79,0.65711243]
[1768269606030,0.70516438,138.81,138.78,0.65711243]
[1768269607351,7.92276527,138.83,138.8,0.65711243]
[1768269607659,7.20323892,138.83,138.81,0.65711243]
[1768269608226,7.79979702,138.83,138.8,2.36603974]
[1768269608452,7.79979702,138.83,138.8,0.65711243]
[1768269608654,7.79979702,138.83,138.8,2.36603974]
[1768269609244,0.71829666,138.82,138.79,2.36603974]
[1768269609458,0.71829666,138.82,138.78,7.20552104]
[1768269609459,0.71829666,138.82,138.78,2.36603974]
[1768269610033,27.51635956,138.83,138.79,0.65711243]
[1768269610429,0.71829666,138.82,138.79,0.65711243]
[1768269612433,0.71829666,138.82,138.79,2.36603974]
[1768269612752,1.70892731,138.84,138.81,2.36603974]
[1768269612753,7.20257816,138.84,138.81,2.36603974]
[1768269613727,7.79913626,138.84,138.81,2.36603974]
[1768269614556,7.79913626,138.84,138.81,0.65711243]
[1768269615437,7.8311409,138.85,138.82,0.72308439]
[1768269616553,0.68613753,138.84,138.81,2.4320117]
[1768269616962,7.88880854,138.84,138.81,0.72308439]
[1768269618967,0.68557228,138.82,138.78,0.72308439]
[1768269619170,0.63017262,138.81,138.78,0.72308439]
[1768269620477,0.63017262,138.81,138.78,2.4320117]
[1768269621274,0.63017262,138.81,138.78,0.72308439]
[1768269621482,0.63017262,138.81,138.78,3.39390828]
[1768269622152,0.63017262,138.81,138.78,10.59948421]
[1768269623362,7.89043004,138.82,138.78,10.59948421]
[1768269623685,7.89043004,138.82,138.79,0.72308439]
[1768269624356,0.68671425,138.82,138.79,3.39390828]
[1768269624553,7.88996542,138.83,138.8,0.72308439]
[1768269627363,7.88996542,138.83,138.8,3.39390828]
[1768269628290,7.88996542,138.83,138.8,0.72308439]
[1768269630282,0.62904207,138.82,138.79,0.72308439]
[1768269635388,7.83275321,138.82,138.79,0.72308439]
[1768269635690,0.655293,138.81,138.78,10.58513509]
[1768269636889,0.655293,138.81,138.78,7.20557593]
[1768269637090,0.655293,138.81,138.78,7.9143112]
[1768269638489,0.655293,138.81,138.78,10.58513509]
[1768269640190,0.655293,138.83,138.8,0.70873527]
[1768269640791,0.655293,138.83,138.79,9.87593114]
[1768269641289,0.655293,138.82,138.79,10.58466641]
[1768269641467,0.655293,138.82,138.79,7.91384252]
[1768269641672,0.655293,138.82,138.79,10.58466641]
[1768269642193,0.655293,138.82,138.79,7.91384252]
[1768269642698,7.8583563,138.83,138.8,0.70873527]
[1768269643798,0.655293,138.82,138.79,9.87593114]
[1768269643977,0.655293,138.82,138.79,10.58466641]
[1768269645600,0.655293,138.82,138.8,0.70873527]
[1768269645795,7.8583563,138.83,138.8,0.70873527]
[1768269652305,7.85908273,138.82,138.79,0.70873527]
[1768269654006,0.655293,138.85,138.8,3.37955916]
[1768269654178,0.655293,138.83,138.8,3.37955916]
[1768269654378,0.655293,138.83,138.8,0.70873527]
[1768269654594,7.85801965,138.84,138.8,0.70873527]
[1768269655380,0.655293,138.83,138.8,0.70873527]
[1768269656402,3.32611689,138.83,138.8,0.70873527]
[1768269656610,7.20357297,138.82,138.8,0.70873527]
[1768269657201,25.8677984,138.82,138.77,0.70873527]
[1768269657394,25.8677984,138.82,138.78,0.70873527]
[1768269657800,0.655293,138.81,138.78,0.70873527]
[1768269659205,7.20357297,138.82,138.78,0.70873527]
[1768269659399,7.85886597,138.82,138.78,0.70873527]
[1768269659901,7.85886597,138.82,138.79,0.70873527]
[1768269660202,7.20357297,138.82,138.79,0.70873527]
[1768269660384,7.85856598,138.83,138.8,0.70873527]
[1768269660880,7.20327298,138.83,138.8,0.70873527]
[1768269661077,7.20327298,138.83,138.81,0.70873527]
[1768269661806,7.20266674,138.84,138.81,0.70873527]
[1768269662194,3.32611689,138.87,138.83,0.70873527]
[1768269662399,0.655293,138.87,138.83,3.37955916]
[1768269662600,0.655293,138.87,138.84,0.70873527]
[1768269663199,7.20167388,138.86,138.84,0.70873527]
[1768269663403,7.20167388,138.86,138.84,3.37955916]
[1768269664080,7.20167388,138.86,138.84,0.70873527]
[1768269664281,7.20167388,138.86,138.84,3.37955916]
[1768269665206,25.8807973,138.88,138.85,0.70501148]
[1768269667516,7.20046082,138.88,138.85,0.70501148]
[1768269668103,7.20046082,138.88,138.86,0.70501148]
[1768269668308,7.20046082,138.88,138.86,0.64501148]
[1768269668696,7.87901462,138.88,138.85,2.67082389]
[1768269669203,0.6785538,138.89,138.86,2.67082389]
[1768269669504,0.6785538,138.89,138.85,2.67082389]
[1768269670190,0.6785538,138.89,138.85,3.37583537]
[1768269670511,0.6785538,138.88,138.85,0.70501148]
[1768269670884,0.6785538,138.88,138.84,3.37583537]
[1768269671888,7.87944134,138.88,138.84,3.37583537]
[1768269672102,7.20088754,138.88,138.85,3.37583537]
[1768269672420,7.87944134,138.88,138.85,3.37583537]
[1768269675820,7.87944134,138.88,138.85,0.70501148]
[1768269678435,7.20011937,138.89,138.86,0.71733254]
[1768269678635,7.8826825,138.89,138.86,3.38815643]
[1768269679121,0.69255168,138.88,138.86,2.67082389]
[1768269681439,0.69255168,138.88,138.86,1.70749102]
[1768269683336,0.69265258,138.89,138.87,0.71733254]
[1768269683530,25.89119812,138.9,138.87,0.65733254]
[1768269683730,0.69265258,138.89,138.86,1.70749102]
[1768269684233,0.69265258,138.89,138.84,7.20216272]
[1768269684434,0.69265258,138.89,138.86,1.70749102]
[1768269684741,7.89301449,138.89,138.86,1.70749102]
[1768269687222,7.89311552,138.88,138.85,2.42482356]
[1768269689242,0.69265258,138.87,138.84,2.42482356]
[1768269690039,0.69265258,138.87,138.83,2.42482356]
[1768269690339,0.69265258,138.86,138.83,2.42482356]
[1768269691142,7.89419581,138.86,138.83,2.42482356]
[1768269695025,7.20154323,138.86,138.84,0.66781304]
[1768269697124,7.20154323,138.86,138.84,2.37530406]
[1768269697938,7.86972702,138.87,138.84,2.37530406]
[1768269701852,7.86972702,138.87,138.85,0.66781304]
[1768269702352,7.20118443,138.87,138.85,0.66781304]
[1768269702550,7.20056057,138.88,138.86,0.66781304]
[1768269705854,7.20056057,138.88,138.86,2.37530406]
[1768269706047,7.20056057,138.88,138.87,0.66781304]
[1768269706244,7.1999424,138.89,138.87,0.60781304]
[1768269707153,0.66854259,138.88,138.86,1.70749102]
[1768269708553,0.66854259,138.88,138.86,2.37530406]
[1768269709858,7.86848499,138.89,138.86,2.37530406]
[1768269711932,7.86848499,138.89,138.86,0.66781304]
[1768269712138,7.86848499,138.89,138.86,2.37530406]
[1768269712658,0.66854259,138.89,138.86,2.37530406]
[1768269715650,1.70749102,138.91,138.86,2.37530406]
[1768269715651,7.86779238,138.91,138.88,0.66781304]
[1768269715845,7.86779238,138.91,138.88,2.37530406]